Cogmind - Beta 16.1 @@@ ROGUE MODE // 2026.03.03 @ 13:27:45 Player: FL-IST Result: Destroyed by Y-45 Defender with Heavy Assault Rifle Performance ------------- Evolutions (2) 1000 Regions Visited (5) 1000 Robots Destroyed (16) 80 Value Destroyed (415) 415 Prototype IDs (23) 460 Alien Tech Used (0) 0 Bonus (625) 625 TOTAL SCORE: 3580 Bonus ------- Follower Combat Kills 325 Aligned with FarCom 300 Cogmind --------- Core Integrity 0/550 Matter 300/300 Energy 100/100 System Corruption 0% Temperature Cool (9) Movement Core (50) Location -8/Materials Parts ------- > --- POWER (1) -------- (None) > --- PROPULSION (2) --- (None) > --- UTILITY (6) ------ (None) > --- WEAPON (2) ------- (None) > --- INVENTORY (5) ---- Light Treads XL Autogun Array Peak State ------------ > --- POWER ------------ (None) > --- PROPULSION ------- Light Treads Light Treads > --- UTILITY ---------- Army-in-a-Box > --- WEAPON ----------- Mining Claw > --- INVENTORY -------- Compact Wheel XL Autogun Array [Rating: 60] Favorites ----------- Power Light Ion Engine Engine Light Ion Engine Propulsion Light Treads Treads Light Treads Wheel Compact Wheel Utility High-capacity Storage Unit Device Structural Scanner Storage High-capacity Storage Unit Weapon Mining Claw Energy Gun EM Pulse Gun Slashing Weapon Mining Claw Build | -11 -10 -10 -10 -9 -8 ------- Run | Yrd Mat Min Exi Min Mat Slots Evolved 4 | . . . . . 4 Power . | . . . . . . Propulsion . | . . . . . . Utility 4 | . . . . . 4 Weapon . | . . . . . . Parts Attached 11 | 6 3 . . . 2 Power 1 | 1 . . . . . Engine 1 | 1 . . . . . Core . | . . . . . . Reactor . | . . . . . . Propulsion 3 | 2 . . . . 1 Treads 2 | 2 . . . . . Leg . | . . . . . . Wheel 1 | . . . . . 1 Hover . | . . . . . . Flight . | . . . . . . Utility 4 | 1 2 . . . 1 Device 2 | . 1 . . . 1 Storage 2 | 1 1 . . . . Processor . | . . . . . . Hackware . | . . . . . . Protection . | . . . . . . Artifact . | . . . . . . Weapon 3 | 2 1 . . . . Energy Gun 2 | 2 . . . . . Energy Cannon . | . . . . . . Ballistic Gun . | . . . . . . Ballistic Cannon . | . . . . . . Launcher . | . . . . . . Special Weapon . | . . . . . . Impact Weapon . | . . . . . . Slashing Weapon 1 | . 1 . . . . Piercing Weapon . | . . . . . . Special Melee Weapon . | . . . . . . Unidentified Prototypes . | . . . . . . Parts Lost 4 | . 2 . . . 2 Power 1 | . 1 . . . . Propulsion 1 | . . . . . 1 Utility . | . . . . . . Weapon 2 | . 1 . . . 1 Highest Loss Streak 2 | . 1 . . . 2 To Critical Strikes . | . . . . . . Average Backups 4 | 2 4 5 6 8 2 Power . | . 1 1 1 1 . Propulsion 1 | 1 2 2 2 2 1 Utility . | . . 1 1 2 . Weapon 1 | . . 1 1 2 1 Tool/Special . | . . . . . . Unused Backups 5 | . . . . . 5 Power 1 | . . . . . 1 Propulsion 1 | . . . . . 1 Utility . | . . . . . . Weapon 2 | . . . . . 2 Tool/Special 1 | . . . . . 1 Average Slot Usage (%) 64 | . 83 71 71 71 29 Engine 3 | . 13 . . . . Treads 22 | . 28 28 28 28 7 Wheel 1 | . . . . . 6 Device 10 | . 6 14 14 14 7 Storage 10 | . 14 14 14 14 . Energy Gun 4 | . 18 . . . . Slashing Weapon 9 | . 2 14 14 14 8 Peak Build Rating 60 | 6 7 5 15 15 60 Average Rating 17 | 5 5 5 9 15 48 On Entrance 7 | . 6 5 5 15 15 Avg Prop Armor Cover (%) 7 | . . . . . 7 Naked Turns 22 | . . . . . 22 Heaviest Build 82 | 12 47 43 43 43 82 Greatest Support 40 | 40 40 40 40 40 40 Greatest Overweight (x) 5 | 1 1 1 1 1 5 Average Overweight (x) 1 | . . 1 1 1 4 Largest Inventory Capacity 20 | 8 20 20 20 20 20 Average Capacity 15 | 6 17 20 20 20 5 Most Carried 16 | 3 5 5 16 16 16 Average Carried 7 | 2 4 5 10 16 5 Final Capacity 20 | 8 20 20 20 20 5 Final Carried 16 | 3 5 5 16 16 5 Class Distribution -------------------- 100% | Mutant Dominant Class ---------------- Mutant | -10/Materials Mutant | -10/Mines Mutant | -10/Exiles Mutant | -9/Mines Mutant | -8/Materials Resources | -11 -10 -10 -10 -9 -8 ----------- Run | Yrd Mat Min Exi Min Mat Matter Collected 305 | 260 25 . . . 20 Remotely . | . . . . . . Salvage Created 846 | 94 638 56 . . 58 Parts 48 | . 42 1 . . 5 Haulers Intercepted 2 | . 1 . . . 1 Recyclers Shooed . | . . . . . . Parts Field Recycled . | . . . . . . Retrieved Matter . | . . . . . . Parts Self-Destructed . | . . . . . . Prevented . | . . . . . . Parts Restored . | . . . . . . Kills | -11 -10 -10 -10 -9 -8 ------- Run | Yrd Mat Min Exi Min Mat Combat Hostiles Destroyed 9 | . 9 . . . . Guns 7 | . 7 . . . . AOE 2 | . 2 . . . . Classes Destroyed 5 | 1 4 . . . . Builder 1 | . 1 . . . . Hauler 2 | . 1 . . . 1 Recycler 2 | 1 1 . . . . Watcher 2 | . 2 . . . . Grunt 9 | . 9 . . . . Best Kill Streak 3 | 1 3 . . . 1 Combat Bots Only 3 | . 3 . . . . Max Kills in Single Turn 2 | 1 2 . . . 1 Gunslinging 1 | . 1 . . . . Exploded 2 | . 2 . . . . Melee . | . . . . . . Uniques/NPCs Destroyed . | . . . . . . Combat | -11 -10 -10 -10 -9 -8 -------- Run | Yrd Mat Min Exi Min Mat Hostile Shots Fired 122 | . 54 . . . 68 Missed 32 | . 15 . . . 17 Hits 90 | . 39 . . . 51 Projectile 90 | . 39 . . . 51 Critical Strikes 2 | . . . . . 2 Damage Taken 1257 | . 497 . . . 760 Core 663 | . 107 . . . 556 Absorbed by Shields . | . . . . . . Core Remaining (%) 78 | 100 . . . 57 . Volleys Fired 51 | 4 47 . . . . Largest 2 | 2 2 . . . . Hottest 80 | 80 80 . . . . Shots Fired 71 | 8 63 . . . . Gun 71 | 8 63 . . . . Cannon . | . . . . . . Launcher . | . . . . . . Special . | . . . . . . Kinetic . | . . . . . . Thermal . | . . . . . . Explosive . | . . . . . . Electromagnetic 71 | 8 63 . . . . Robot Hit Streak 10 | 4 10 . . . . Robot Miss Streak 4 | 1 4 . . . . Penetration Max . | . . . . . . Secondary Targets 1 | . 1 . . . . Max Gunslinging Chain 1 | . 1 . . . . Shots Hit Robots 48 | 5 41 1 . . 1 Core Hits 26 | 2 22 1 . . 1 Critical Kills . | . . . . . . Critical Parts Destroyed . | . . . . . . Critical Strikes 1 | . 1 . . . . Corrupt 1 | . 1 . . . . Melee Attacks 3 | . 1 1 . . 1 Impact . | . . . . . . Slashing 3 | . 1 1 . . 1 Piercing . | . . . . . . Sneak Attacks 2 | . 1 . . . 1 Combat Hostiles . | . . . . . . Follow-up Attacks . | . . . . . . Damage Inflicted 934 | 67 770 46 . . 51 Guns 668 | 67 601 . . . . Cannons . | . . . . . . Explosions 123 | . 123 . . . . Melee 143 | . 46 46 . . 51 Ramming . | . . . . . . Kinetic . | . . . . . . Thermal 123 | . 123 . . . . Explosive . | . . . . . . Electromagnetic 668 | 67 601 . . . . Impact . | . . . . . . Slashing 143 | . 46 46 . . 51 Piercing . | . . . . . . Highest Corruption . | . . . . . . Average Corruption . | . . . . . . Corruption Purged . | . . . . . . Corruption Blocked . | . . . . . . Overload Shots . | . . . . . . Overflow Damage . | . . . . . . Projectiles . | . . . . . . Explosions . | . . . . . . Melee . | . . . . . . Knockbacks . | . . . . . . Impact . | . . . . . . Kinetic . | . . . . . . Secondary . | . . . . . . Self-Inflicted Damage 4 | . 4 . . . . Shots 1 | . 1 . . . . Rammed . | . . . . . . Targets Rammed . | . . . . . . Kicked . | . . . . . . Crushed . | . . . . . . Highest Temperature 204 | 72 204 . . . . Average Temperature 80 | 38 86 . . . . Received Heat Transfer 525 | . 273 . . . 252 Siege Activations . | . . . . . . Martial Activations . | . . . . . . Shielding Activations . | . . . . . . Robots Disrupted . | . . . . . . Combat Hostiles . | . . . . . . Robots Corrupted 1 | . 1 . . . . Combat Hostiles . | . . . . . . Parts Fried 3 | . 3 . . . . Impact Corruptions . | . . . . . . Robots Melted . | . . . . . . Combat Hostiles . | . . . . . . Parts Melted 1 | . 1 . . . . Heat Transferred 150 | . 150 . . . . Parts Sabotaged . | . . . . . . Parts Stolen . | . . . . . . Parts Stripped . | . . . . . . Power Chain Reactions 2 | . 2 . . . . Alert | -11 -10 -10 -10 -9 -8 ------- Run | Yrd Mat Min Exi Min Mat Maximum Alert Level 2 | . . . . . 2 Low Security (%) 77 | 100 100 100 . 100 30 Level 1 6 | . . . . . 18 Level 2 16 | . . . . . 50 Level 3 . | . . . . . . Level 4 . | . . . . . . Level 5 . | . . . . . . High Security . | . . . . . . Max Security . | . . . . . . Peak Influence 485 | 5 128 25 . . 485 Initial 25 | . . 25 . . . Average 127 | . 72 10 . . 309 Influence Increases 834 | 5 282 5 . . 542 Destroy 0b10 Robot/C 360 | . 180 . . . 180 Destroy 0b10 Robot/NC 45 | 5 25 5 . . 10 Destroy Leader 90 | . 36 . . . 54 Allied During Kill 237 | . . . . . 237 Successful Hack 5 | . 5 . . . . Select Force Hacks 30 | . 30 . . . . Disable Machine 45 | . . . . . 45 Destroy Structure 22 | . 6 . . . 16 Influence Decreases 490 | 5 217 70 . . 198 Entered New Map 40 | . . 40 . . . Time Decay 410 | 5 197 30 . . 178 Lost Part 40 | . 20 . . . 20 Squads Dispatched 2 | . 2 . . . . Investigation 2 | . 2 . . . . Extermination . | . . . . . . Reinforcement . | . . . . . . Assault . | . . . . . . Garrison . | . . . . . . Intercept . | . . . . . . Searches Triggered . | . . . . . . Construction Impeded . | . . . . . . Haulers Reinforced . | . . . . . . Active Scanning Responses . | . . . . . . Cargo Convoy Interrupts . | . . . . . . Stealth | -11 -10 -10 -10 -9 -8 --------- Run | Yrd Mat Min Exi Min Mat Distress Signals 2 | . 1 . . . 1 Communications Jammed . | . . . . . . Distress Signals . | . . . . . . Times Spotted 22 | . 16 . . . 6 Peak Tracking Total 4 | . 4 . . . 2 Tactical Retreats . | . . . . . . Traps | -11 -10 -10 -10 -9 -8 ------- Run | Yrd Mat Min Exi Min Mat Traps Triggered 2 | . 1 . . . 1 Indirectly . | . . . . . . Trap Hack Attempts . | . . . . . . Triggered . | . . . . . . Disarmed . | . . . . . . Reprogrammed . | . . . . . . Reused . | . . . . . . Traps Extracted . | . . . . . . Installed . | . . . . . . Triggered . | . . . . . . Machines | -11 -10 -10 -10 -9 -8 ---------- Run | Yrd Mat Min Exi Min Mat Machines Disabled 3 | . . . . . 3 Max in Single Turn . | . . . . . . Machines Repaired . | . . . . . . Machines Dismantled . | . . . . . . Machines Sabotaged . | . . . . . . Overloaded Fab Kills . | . . . . . . Hacking | -11 -10 -10 -10 -9 -8 --------- Run | Yrd Mat Min Exi Min Mat Machines Accessed 4 | . 3 . 1 . . Terminals 2 | . 2 . . . . Fabricators . | . . . . . . Repair Stations . | . . . . . . Recycling Units 1 | . 1 . . . . Scanalyzers . | . . . . . . Garrison Access . | . . . . . . Total Hacks 11 | . 10 . 1 . . Successful 4 | . 3 . 1 . . Failed 7 | . 7 . . . . Catastrophic 3 | . 3 . . . . Database Lockouts . | . . . . . . Manual 9 | . 8 . 1 . . Terminals 7 | . 7 . . . . Fabricators . | . . . . . . Repair Stations . | . . . . . . Recycling Units 3 | . 3 . . . . Scanalyzers . | . . . . . . Garrison Access . | . . . . . . Terminal Hacks 1 | . . . 1 . . Proto ID Catalog 1 | . . . 1 . . Fabricator Hacks . | . . . . . . Repair Station Hacks . | . . . . . . Recycling Unit Hacks . | . . . . . . Scanalyzer . | . . . . . . Garrison Access Hacks . | . . . . . . Unauthorized Hacks 3 | . 3 . . . . Terminals 2 | . 2 . . . . Botnet 1 | . 1 . . . . Skim 1 | . 1 . . . . Fabricators . | . . . . . . Repair Stations . | . . . . . . Recycling Units 1 | . 1 . . . . Tunnel 1 | . 1 . . . . Scanalyzers . | . . . . . . Garrison Access . | . . . . . . Data Cores Recovered . | . . . . . . Used . | . . . . . . Hacking Detections 3 | . 3 . . . . Full Trace Events . | . . . . . . Feedback Events . | . . . . . . Feedback Blocked . | . . . . . . Robot Schematics Acquired . | . . . . . . Robots Built . | . . . . . . Authchips . | . . . . . . Time . | . . . . . . Total Robot Build Rating . | . . . . . . Part Schematics Acquired . | . . . . . . Parts Built . | . . . . . . Authchips . | . . . . . . Time . | . . . . . . Total Part Build Rating . | . . . . . . Part Studies Acquired . | . . . . . . Parts Repaired . | . . . . . . Time . | . . . . . . Parts Recycled . | . . . . . . Recycled Matter . | . . . . . . Retrieved Matter . | . . . . . . Retrieved Components . | . . . . . . Parts Scanalyzed . | . . . . . . Part Schematics Acquired . | . . . . . . Parts Damaged . | . . . . . . Bothacking | -11 -10 -10 -10 -9 -8 ------------ Run | Yrd Mat Min Exi Min Mat Used RIF Installer . | . . . . . . Robots Hacked . | . . . . . . Non-combat . | . . . . . . Combat . | . . . . . . Robot Hacks Applied . | . . . . . . Relay Couplers Released . | . . . . . . Fabnet Peak Effective % . | . . . . . . Robots Rewired . | . . . . . . Allies Hacked . | . . . . . . Hacks Repelled . | . . . . . . Allies | -11 -10 -10 -10 -9 -8 -------- Run | Yrd Mat Min Exi Min Mat Total Allies . | . . . . . . Largest Group . | . . . . . . Highest-Rated Group . | . . . . . . Highest-Rated Ally . | . . . . . . Total Orders 3 | . . . . . 3 RETURN 3 | . . . . . 3 Ally Attacks 75 | . . . . . 75 Total Damage 1376 | . . . . . 1376 Kills 13 | . . . . . 13 Allies Corrupted . | . . . . . . Allies Melted . | . . . . . . Intel | -11 -10 -10 -10 -9 -8 ------- Run | Yrd Mat Min Exi Min Mat Active Infowar (turns) 1028 | . 226 90 515 192 5 Structural 1028 | . 226 90 515 192 5 Robot Analysis Total . | . . . . . . Derelict Logs Recovered . | . . . . . . Drone Launches 30 | . . . . . 30 Drone Recoveries 23 | . . . . . 23 Exploration | -11 -10 -10 -10 -9 -8 ------------- Run | Yrd Mat Min Exi Min Mat Turns Passed 1779 | 110 465 90 515 192 407 Spaces Moved 659 | 55 159 37 214 81 113 Core 6 | 6 . . . . . Treads 543 | 49 159 37 214 81 3 Legs . | . . . . . . Wheels 110 | . . . . . 110 Hover . | . . . . . . Flight . | . . . . . . Fastest Speed 50 | 50 160 240 240 240 160 Average Speed 214 | 149 210 240 240 240 176 Slowest Speed 240 | 160 240 240 240 240 240 Overloaded Moves . | . . . . . . Propulsion Burnouts . | . . . . . . Robots Hopped . | . . . . . . Potential Cave-ins . | . . . . . . Cave-ins Triggered . | . . . . . . Exploration Rate (%) 28 | 3 38 12 61 39 20 Regions Visited 5 Branch Regions 3 Pre-discovered Areas 2 | . 1 1 . . . Known Exits Taken . | . . . . . . Unknown Exits Taken 5 | 1 1 1 1 1 . Scrap Searched . | . . . . . . Spaces Dug . | . . . . . . Terrain Destroyed 6 | . 6 . . . . Melee . | . . . . . . Projectile . | . . . . . . AOE 6 | . 6 . . . . Terrain Rammed . | . . . . . . Walls Destroyed . | . . . . . . Machines Disabled . | . . . . . . Actions | -11 -10 -10 -10 -9 -8 --------- Run | Yrd Mat Min Exi Min Mat Total 948 | 72 224 37 216 80 319 Wait 217 | 5 12 . . . 200 Move 654 | 54 158 36 213 80 113 Hop . | . . . . . . Pick Up 7 | 3 1 . 3 . . Fast Attach 10 | 6 3 . . . 1 Attach . | . . . . . . Detach 1 | . 1 . . . . Swap 1 | . . . . . 1 Drop 4 | . 1 . . . 3 Fire 51 | 4 47 . . . . Melee 3 | . 1 1 . . 1 Ram . | . . . . . . Kick . | . . . . . . Crush . | . . . . . . Escape Stasis . | . . . . . . Rewire . | . . . . . . Trap . | . . . . . . Miscellaneous . | . . . . . . Route ------- -11/Scrapyard -10/Materials (discovered 4 exits: [*Mat x2] / [*Min x2]) -10/Mines -10/Exiles -9/Mines -8/Materials History --------- Turn | Location | Event 5 | -11/Scrapyard | Discovered new exit (range 16) 111 | -11/Scrapyard | Entered Materials 111 | -10/Materials | Discovered new exit (range 8) 260 | -10/Materials | Discovered new exit (range 15) 304 | -10/Materials | Build established: Mutant 436 | -10/Materials | Discovered new exit (range 13) 484 | -10/Materials | Discovered new exit (range 7) 576 | -10/Materials | Entered Mines 621 | -10/Mines | Learned location of Storage (-7) 654 | -10/Mines | Deemed a non-threat by the Exiles lab entrance 654 | -10/Mines | Discovered new exit (range 6) 666 | -10/Mines | Entered Exiles 726 | -10/Exiles | Met 8R-AWN 765 | -10/Exiles | Met EX-HEX 830 | -10/Exiles | Met EX-BIN 861 | -10/Exiles | Aligned with FarCom system 863 | -10/Exiles | Given EX-Vault access code 923 | -10/Exiles | Opened EX-Vault 940 | -10/Exiles | Found Army-in-a-Box 946 | -10/Exiles | Found XL Autogun Array 949 | -10/Exiles | Found Skeleton Box 998 | -10/Exiles | Warned to stay clear of 0b10 Research branches 1073 | -10/Exiles | Met EX-DEC 1154 | -10/Exiles | Discovered new exit (range 14) 1181 | -10/Exiles | Stole three prototypes: Skeleton Box, Army-in-a-Box, XL Autogun Array 1181 | -10/Exiles | Entered Mines 1337 | -9/Mines | Discovered new exit (range 15) 1373 | -9/Mines | Entered Materials 1373 | -8/Materials | Evolved 4 slots: Utility x4 1497 | -8/Materials | Lost 3 allies 1747 | -8/Materials | Core integrity fell below 50% 1771 | -8/Materials | Core integrity fell below 20% 1780 | -8/Materials | Destroyed by Y-45 Defender with Heavy Assault Rifle Last Messages --------------- 01533_ Army Drone retrieved by Army-in-a-Box (no repairs). 01537_ Army Drone retrieved by Army-in-a-Box (repair cost: 5). 01537_ K-01 Serf collects debris. 01538_ Army Drone retrieved by Army-in-a-Box (no repairs). 01539_ Army Drone retrieved by Army-in-a-Box (repair cost: 2). 01559_ K-01 Serf collects debris. 01562_ Acquired 20 matter. 01562_ K-01 Serf collects debris. 01570_ U-05 Engineer builds a Wall. 01625_ Sneak attack on A-02 Transporter. 01625_ A-02 Transporter destroyed. 01644_ Triggered Blade Trap. 01644_ Massive razor-sharp blades shoot up from within the floor. 01644_ Lgt. Treads severed. 01649_ U-05 Engineer lays Concrete. 01698_ Critical hit (Burn: +37). 01704_ Dropped Army-in-a-Box. 01707_ Critical hit (Burn: +37). 01734_ Com. Wheel destroyed. 01758_ Mining Claw destroyed. Map ----- +----------------------------------------------------+ | ???????# #??########?????????? | | ???????# """ """ #??#! #?????????? | | ######## """ """ #### #?????????? | | # + """ " # + """ #?????????? | | # ###### + # """ ####??????? | | # #????# " =%# # """ # #??????? | | # #????# %!# !# # #??????? | | # #############+##!*#####+## +??????? | | !%=!!= !! #??????? | | = =[*%!= % [%* #??????? | | %* ######## ####= ######?? | | #############^ #?????## # ## ## ? | | ###?????????#^=#?????##+#### ## """ # | | #?????????#%*#???????????# ## """ # | | #????????##==##?????????## ## """ # | | *#????????# #?????????# # """ # | | #????????+ [*#?????????# # # | | #??????? # =%[+?????????# + """ # | | #??????? # !=#?????????# # """ # | | #??????"?## ##?????????###### """ # | | #?????"???# #???????????????# """ # | | #???? ???# ####+###+##?????# # | | ???????+##### ####??# ] =# | | ??????# #??####### | | ???????######+####+#####+##+#????????? | | ???????????? ??# @ #????????? | | ???????????? ??# [ #????????? | | ??????????? ??# """ """ Y#???????? | | ??????????? ??# """ """ ##???????? | | ?????????? !??# """ """ [ #????????? | | ?????????? ??# #????????? | | ?????????#####??# #????????? | | ????????????????#############????????? | | ?????????????????????????????????????? | | ?????????????????????????????????????? | | ?????????????????????????????????????? | | ?????????????????????????????????????? | | ?????????????????????????????????????? | | ?????????????????????????????????????? | | ?????????????????????????????????????? | | ?????????????????????????????????????? | | ?????????????????????????????????????? | | ?????????????????????????????????????? | | ?????????????????????????????????????? | | ?????????????????????????????????????? | | ?????????????????????????????????????? | | ?????????????????????????????????????? | | ?????????????????????????????????????? | | ?????????????????????????????????????? | | ?????????????????????????????????????? | +----------------------------------------------------+ Best States ------------- Heat Dissipation 31 Energy Generation 10 Energy Capacity 125 Matter Stores 300 Matter Capacity 300 Sight Range 16 Terrain Scan Density 10 Evasion (%) 40 Recoil Reduction 2 Item Schematics ----------------- None Robot Schematics ------------------ None Fabricated ------------ Nothing Repaired ---------- Nothing Studied --------- None Alien Tech Used ----------------- None Achievements -------------- None Challenges ------------ None Game ------ Seed BlinkAntimissileShooter Manual? 0 Play Time 00:13:07 Cumulative 321.0 hours Start 2026.03.03 @ 13:15:08 End 2026.03.03 @ 13:27:45 Sessions 1 Manual Loads 0 Difficulty Rogue Special Mode None Game No. 259 Rogue 259 Adventurer 0 Explorer 0 Win Type - Total 18 Types 9/0/7/2/0/0/0/0/0/0 Lore% 85 Gallery% 75 Achievement% 62 Wizard Run 0 Options --------- Layout 1 ASCII 0 Keyboard 0 Movement Numpad Keybinds 0 Fullscreen 1 Font 32/SmallcapsGlow Map View 77x35 Zoom Use 0% Tactical HUD 1 Map Filters NONE Filters NONE Steam 1 RUN: ceb89c6f-c350-46fc-b878-cb06352b0d2d